fUST/lending_fUST_20250624
["ID","MTS","AMOUNT","RATE_DAILY","PERIOD"]
[367282447,1750728645362,-460.0,0.00019278,2]
[367282448,1750728645372,-573.77,0.00019278,2]
[367282449,1750728645381,-460.0,0.00019278,2]
[367282450,1750728645390,-480.9,0.00019278,2]
[367282451,1750728645400,-460.0,0.00019278,2]
[367282452,1750728645409,-460.0,0.00019278,2]
[367282453,1750728645419,-460.0,0.00019278,2]
[367282454,1750728645428,-460.0,0.00019278,2]
[367282455,1750728645438,-460.0,0.00019278,2]
[367282456,1750728645448,-460.0,0.00019278,2]
[367282457,1750728645457,-460.0,0.00019278,2]
[367282458,1750728645467,-460.0,0.00019278,2]
[367282459,1750728645477,-500.0,0.00019278,2]
[367282460,1750728645487,-555.2,0.00019278,2]
[367282461,1750728645495,-460.0,0.00019278,2]
[367282462,1750728645505,-460.0,0.00019278,2]
[367282463,1750728645514,-460.0,0.00019278,2]
[367282464,1750728645524,-243.03197924,0.00019278,2]
[367282465,1750728645534,-460.0,0.00019278,2]
[367282466,1750728645544,-5168.88,0.00019278,2]
[367282467,1750728645555,-460.0,0.00019278,2]
[367282468,1750728645565,-460.0,0.00019278,2]
[367282469,1750728645574,-692.51,0.00019278,2]
[367282470,1750728645584,-320.46850893,0.00019278,2]
[367282471,1750728645594,-460.0,0.00019278,2]
[367282472,1750728645604,-460.0,0.00019278,2]
[367282473,1750728645614,-460.0,0.00019278,2]
[367282474,1750728645625,-568.84,0.00019278,2]
[367282475,1750728645635,-460.0,0.00019278,2]
[367282476,1750728645644,-460.0,0.00019278,2]
[367282477,1750728645654,-496.76,0.00019278,2]
[367282478,1750728645664,-767.62,0.00019278,2]
[367282479,1750728645674,-460.0,0.00019278,2]
[367282480,1750728645684,-460.0,0.00019278,2]
[367282481,1750728645694,-460.0,0.00019278,2]
[367282482,1750728645704,-460.0,0.00019278,2]
[367282483,1750728645713,-460.0,0.00019278,2]
[367282484,1750728645723,-460.0,0.00019278,2]
[367282485,1750728645732,-626.1,0.00019278,2]
[367282486,1750728645741,-460.0,0.00019278,2]
[367282487,1750728645751,-460.0,0.00019278,2]
[367282488,1750728645760,-460.0,0.00019278,2]
[367282489,1750728645769,-460.0,0.00019278,2]
[367282490,1750728645778,-150.37335096,0.00019278,2]
[367282491,1750728645788,-461.51451208,0.00019278,2]
[367282492,1750728645797,-467.24833193,0.00019278,2]
[367282493,1750728645806,-465.91448919,0.00019278,2]
[367282494,1750728645815,-500.0,0.0001928,2]
[367282495,1750728645825,-500.0,0.00019281,2]
[367282496,1750728645834,-460.0,0.00019282,2]
[367282497,1750728645844,-460.0,0.00019282,2]
[367282498,1750728645853,-460.0,0.00019282,2]
[367282499,1750728645863,-500.0,0.00019282,2]
[367282500,1750728645872,-460.0,0.00019282,2]
[367282501,1750728645881,-601.06562537,0.00019282,2]
[367282502,1750728645890,-460.0,0.00019282,2]
[367282503,1750728645899,-460.0,0.00019282,2]
[367282504,1750728645909,-460.0,0.00019282,2]
[367282505,1750728645918,-460.0,0.00019282,2]
[367282506,1750728645928,-460.0,0.00019282,2]
[367282507,1750728645937,-460.0,0.00019282,2]
[367282508,1750728645947,-460.0,0.00019282,2]
[367282509,1750728645956,-460.0,0.00019282,2]
[367282510,1750728645965,-460.0,0.00019282,2]
[367282512,1750728645974,-460.0,0.00019282,2]
[367282513,1750728645983,-460.0,0.00019282,2]
[367282514,1750728645993,-950.93,0.00019282,2]
[367282515,1750728646002,-460.0,0.00019282,2]
[367282516,1750728646011,-507.98651489,0.00019282,2]
[367282517,1750728646020,-460.0,0.00019282,2]
[367282518,1750728646030,-460.0,0.00019282,2]
[367282519,1750728646039,-460.0,0.00019282,2]
[367282520,1750728646048,-494.6701882,0.00019282,2]
[367282521,1750728646058,-460.0,0.00019282,2]
[367282522,1750728646069,-420.00476985,0.00019282,2]
[367282523,1750728646079,-500.0,0.00019284,2]
[367282524,1750728646089,-413.78024012,0.000195,2]
[367282525,1750728646098,-346.73,0.00019513,3]
[367282526,1750728646107,-693.46,0.00019523,3]
[367282527,1750728646117,-173.36,0.00019523,3]
[367282528,1750728646127,-520.12,0.00019523,3]
[367282529,1750728646136,-26942.81475342,0.00019531,2]
[367282530,1750728646145,-2268.45,0.00019533,3]
[367282531,1750728646155,-1386.91,0.00019533,3]
[367282532,1750728646164,-154.46,0.00019544,2]
[367282533,1750728646173,-1589.17,0.00019544,2]
[367282534,1750728646182,-283.23,0.00019544,2]
[367282535,1750728646192,-1723.54,0.00019544,2]
[367282536,1750728646201,-500.0,0.00019549,2]
[367282537,1750728646210,-460.0,0.00019549,2]
[367282538,1750728646219,-304.48,0.00019549,2]
[367282539,1750728646228,-273.59,0.00019549,2]
[367282540,1750728646238,-460.0,0.00019549,2]
[367282541,1750728646247,-189.23421631,0.00019549,2]
[367282542,1750728646255,-460.0,0.00019549,2]
[367282543,1750728646265,-460.0,0.00019549,2]
[367282544,1750728646274,-460.0,0.0001955,2]
[367282545,1750728646283,-460.0,0.0001955,2]
[367282546,1750728646292,-460.0,0.0001955,2]
[367282547,1750728646301,-172.86,0.0001955,2]
[367282548,1750728646311,-1957.68,0.0001955,2]
[367282549,1750728646320,-341.12,0.0001955,2]
[367282550,1750728646330,-520.42,0.0001955,2]
[367282551,1750728646339,-460.0,0.0001955,2]
[367282552,1750728646352,-657.55,0.0001955,2]
[367282553,1750728646362,-595.96,0.0001955,2]
[367282554,1750728646371,-460.0,0.0001955,2]
[367282555,1750728646380,-460.0,0.0001955,2]
[367282556,1750728646389,-460.0,0.0001955,2]
[367282557,1750728646398,-460.0,0.0001955,2]
[367282559,1750728646408,-460.0,0.0001955,2]
[367282561,1750728646417,-198.74,0.0001955,2]
[367282563,1750728646427,-460.0,0.0001955,2]
[367282565,1750728646436,-185.9,0.0001955,2]
[367282567,1750728646446,-1463.3,0.0001955,2]
[367282569,1750728646455,-1236.25,0.0001955,2]
[367282585,1750728646588,-460.0,0.0001955,2]
[367282587,1750728646598,-2638.57,0.0001955,2]
[367282588,1750728646607,-202.46,0.0001955,2]
[367282590,1750728646617,-460.0,0.0001955,2]
[367282592,1750728646626,-460.0,0.0001955,2]
[367282594,1750728646635,-501.62,0.0001955,2]
[367282596,1750728646644,-460.0,0.0001955,2]
[367282598,1750728646653,-849.18,0.0001955,2]
[367282600,1750728646663,-830.52,0.0001955,2]
[367282603,1750728646673,-460.0,0.0001955,2]
[367282605,1750728646683,-549.22,0.0001955,2]
[367282607,1750728646693,-612.53,0.0001955,2]
[367282609,1750728646703,-701.31,0.0001955,2]
[367282610,1750728646714,-546.43,0.0001955,2]
[367282612,1750728646723,-750.71,0.0001955,2]
[367282615,1750728646733,-346.82,0.0001955,2]
[367282617,1750728646744,-460.0,0.0001955,2]
[367282619,1750728646756,-460.0,0.0001955,2]
[367282621,1750728646766,-590.79,0.0001955,2]
[367282622,1750728646775,-460.0,0.0001955,2]
[367282624,1750728646784,-460.0,0.0001955,2]
[367282626,1750728646793,-460.0,0.0001955,2]
[367282628,1750728646803,-313.26,0.0001955,2]
[367282630,1750728646812,-808.71,0.0001955,2]
[367282632,1750728646823,-578.43,0.0001955,2]
[367282634,1750728646832,-460.0,0.0001955,2]
[367282636,1750728646841,-460.0,0.0001955,2]
[367282638,1750728646850,-928.19,0.0001955,2]
[367282640,1750728646860,-460.0,0.0001955,2]
[367282642,1750728646869,-460.0,0.00019551,2]
[367282644,1750728646878,-460.0,0.00019551,2]
[367282646,1750728646887,-726.14,0.00019551,2]
[367282648,1750728646897,-460.0,0.00019551,2]
[367282650,1750728646906,-460.0,0.00019551,2]
[367282652,1750728646915,-460.0,0.00019551,2]
[367282654,1750728646924,-578.24,0.00019551,2]
[367282656,1750728646933,-460.0,0.00019551,2]
[367282658,1750728646943,-533.43,0.00019551,2]
[367282660,1750728646951,-460.0,0.00019551,2]
[367282662,1750728646961,-594.18,0.00019551,2]
[367282664,1750728646970,-544.7,0.00019551,2]
[367282666,1750728646980,-460.0,0.00019551,2]
[367282668,1750728646989,-460.0,0.00019551,2]
[367282670,1750728646998,-460.0,0.00019551,2]
[367282672,1750728647008,-2257.98,0.00019551,2]
[367282674,1750728647018,-1124.92,0.00019551,2]
[367282676,1750728647027,-460.0,0.00019551,2]
[367282678,1750728647036,-460.0,0.00019551,2]
[367282680,1750728647046,-2039.6,0.00019551,2]
[367282682,1750728647055,-460.0,0.00019551,2]
[367282684,1750728647064,-927.28,0.00019551,2]
[367282686,1750728647078,-2916.76,0.00019551,2]
[367282688,1750728647087,-460.0,0.00019551,2]
[367282690,1750728647096,-460.0,0.00019551,2]
[367282692,1750728647106,-1899.56,0.00019551,2]
[367282694,1750728647117,-460.0,0.00019551,2]
[367282696,1750728647127,-460.0,0.00019552,2]
[367282697,1750728647138,-157.88,0.00019552,2]
[367282700,1750728647151,-544.33,0.00019552,2]
[367282702,1750728647160,-460.0,0.00019552,2]
[367282704,1750728647169,-460.0,0.00019552,2]
[367282706,1750728647178,-191.77,0.00019552,2]
[367282708,1750728647188,-460.0,0.00019552,2]
[367282710,1750728647197,-249.92,0.00019552,2]
[367282712,1750728647206,-460.0,0.00019552,2]
[367282714,1750728647215,-184.42,0.00019552,2]
[367282716,1750728647225,-460.0,0.00019552,2]
[367282717,1750728647234,-460.0,0.00019552,2]
[367282719,1750728647243,-460.0,0.00019552,2]
[367282721,1750728647253,-460.0,0.00019552,2]
[367282723,1750728647263,-555.2,0.00019552,2]
[367282725,1750728647273,-5168.88,0.00019552,2]
[367282728,1750728647285,-692.51,0.00019552,2]
[367282730,1750728647294,-568.84,0.00019552,2]
[367282732,1750728647303,-460.0,0.00019552,2]
[367282733,1750728647312,-496.76,0.00019552,2]
[367282734,1750728647321,-767.62,0.00019552,2]
[367282735,1750728647331,-460.0,0.00019552,2]
[367282736,1750728647340,-626.1,0.00019552,2]
[367282737,1750728647350,-220.46,0.00019554,2]
[367282738,1750728647359,-460.0,0.00019556,2]
[367282739,1750728647368,-476.36325712,0.00019556,2]
[367282740,1750728647377,-460.0,0.00019556,2]
[367282741,1750728647387,-460.0,0.00019556,2]
[367282742,1750728647396,-460.0,0.00019556,2]
[367282743,1750728647406,-460.0,0.00019556,2]
[367282744,1750728647416,-460.0,0.00019556,2]
[367282745,1750728647425,-460.0,0.00019556,2]
[367282746,1750728647435,-460.0,0.00019556,2]
[367282747,1750728647444,-460.0,0.00019556,2]
[367282748,1750728647454,-460.0,0.00019556,2]
[367282749,1750728647463,-950.93,0.00019556,2]
[367282750,1750728647473,-460.0,0.00019556,2]
[367282751,1750728647485,-460.0,0.00019556,2]
[367282752,1750728647494,-460.0,0.00019556,2]
[367282753,1750728647503,-422.29529046,0.00019556,2]
[367282754,1750728647512,-84.00792474,0.00019556,2]
[367282813,1750728648106,-375.99207526,0.00019556,2]
[367282815,1750728648118,-365.8891638,0.000196,2]
[367282817,1750728648127,-731.7783276,0.000196,2]
[367282819,1750728648137,-365.8891638,0.000196,2]
[367282820,1750728648148,-365.8891638,0.000196,2]
[367282822,1750728648157,-84.35647844,0.000196,2]
[367282826,1750728648179,-286.51887356,0.000196,2]
[367282828,1750728648189,-500.0,0.0001968,2]
[367282830,1750728648198,-1518.66863526,0.00019725,2]
[367282832,1750728648207,-500.0,0.0001978,2]
[367282834,1750728648216,-5000.0,0.00019814,2]
[367282836,1750728648225,-1589.17,0.00019818,2]
[367282838,1750728648234,-1723.54,0.00019818,2]
[367282840,1750728648243,-875.86406071,0.0001982,2]
[367282842,1750728648254,-472.95933375,0.0001982,2]
[367282862,1750728657150,150.0,0.0001948,30]
[367282867,1750728703833,700.0,0.00024657,120]
[367282868,1750728704080,700.0,0.00024657,120]
[367282869,1750728704342,609.94307572,0.00024657,120]
[367282870,1750728898961,228.853278,0.000222,69]
[367282871,1750728934242,180.5209921,0.00018252,2]
[367282872,1750729040201,23282.29569809,0.00018255,2]
[367282873,1750729040223,1617.70430191,0.00018255,2]
[367282874,1750729080688,-306.72,0.00019102,2]
[367282876,1750729207368,1275.4344803,0.00018255,2]
[367282877,1750729267660,5800.0,0.00024,30]
[367282879,1750729326982,418.145283,0.00013699,2]
[367282880,1750729327421,-304.77,0.00019102,2]
[367282881,1750729395196,-150.0,0.00019102,2]
[367282882,1750729529987,-273.591001,0.00019102,2]
[367282884,1750729629093,-1228.918999,0.00019102,2]
[367282885,1750729629113,-454.02561021,0.00019102,2]
[367282886,1750729629133,-1042.2710695,0.0001911,2]
[367282887,1750729629155,-633.73191951,0.0001917,2]
[367282888,1750729629178,-196.9137959,0.00019178,2]
[367282889,1750729629199,-300.0,0.00019262,2]
[367282890,1750729629221,-300.0,0.00019262,2]
[367282891,1750729629241,-170.3690485,0.00019263,2]
[367282892,1750729636092,-129.6309515,0.00019263,2]
[367282893,1750729636115,-1200.0,0.00019263,2]
[367282894,1750729636137,-160.96498291,0.00019263,2]
[367282895,1750729647149,-139.03501709,0.00019263,2]
[367282896,1750729647169,-300.0,0.00019263,2]
[367282897,1750729647191,-1688.0,0.00019263,2]
[367282898,1750729647213,-207.4,0.00019263,2]
[367282899,1750729647234,-460.0,0.00019264,2]
[367282900,1750729647255,-460.0,0.00019264,2]
[367282901,1750729647276,-460.0,0.00019264,2]
[367282902,1750729647297,-1678.02,0.00019264,2]
[367282903,1750729647318,-460.0,0.00019264,2]
[367282904,1750729647340,-1749.91756734,0.00019264,2]
[367282907,1750729688093,163.8201712,0.00018414,2]
[367282910,1750729735810,-153.89675049,0.00019164,2]
[367282953,1750729832566,-446.57405139,0.00019164,2]
[367282955,1750729832577,-374.494068,0.00019178,2]
[367282957,1750729832586,-150.0,0.00019263,2]
[367282959,1750729832596,-300.0,0.00019263,2]
[367282962,1750729832606,-300.0,0.00019263,2]
[367282964,1750729832615,-1200.0,0.00019263,2]
[367282966,1750729832624,-500.0,0.00019263,2]
[367282968,1750729832633,-500.0,0.00019263,2]
[367282970,1750729832643,-1688.0,0.00019263,2]
[367282972,1750729832652,-500.0,0.00019263,2]
[367282974,1750729832662,-500.0,0.00019263,2]
[367282976,1750729832671,-500.0,0.00019263,2]
[367282978,1750729832680,-500.0,0.00019263,2]
[367282980,1750729832690,-500.0,0.00019263,2]
[367282982,1750729832699,-500.0,0.00019263,2]
[367282984,1750729832709,-500.0,0.00019263,2]
[367282986,1750729832717,-500.0,0.00019263,2]
[367282988,1750729832727,-500.0,0.00019263,2]
[367282990,1750729832736,-500.0,0.00019263,2]
[367282992,1750729832747,-500.0,0.00019263,2]
[367282994,1750729832756,-207.4,0.00019263,2]
[367282996,1750729832766,-500.0,0.00019263,2]
[367282998,1750729832775,-500.0,0.00019263,2]
[367283000,1750729832785,-500.0,0.00019263,2]
[367283002,1750729832794,-500.0,0.00019263,2]
[367283004,1750729832803,-500.0,0.00019263,2]
[367283006,1750729832813,-500.0,0.00019263,2]
[367283008,1750729832823,-5000.0,0.00019263,2]
[367283010,1750729832833,-500.0,0.00019263,2]
[367283012,1750729832842,-500.0,0.00019263,2]
[367283014,1750729832852,-500.0,0.00019263,2]
[367283016,1750729832861,-500.0,0.00019263,2]
[367283018,1750729832871,-500.0,0.00019263,2]
[367283020,1750729832881,-2041.55,0.00019264,2]
[367283022,1750729832890,-473.61519255,0.00019264,2]
[367283024,1750729832900,-718.71,0.00019264,2]
[367283026,1750729832910,-604.88321844,0.00019264,2]
[367283029,1750729832919,-1384.21,0.00019264,2]
[367283030,1750729832929,-460.0,0.00019264,2]
[367283032,1750729832938,-469.4654368,0.00019264,2]
[367283034,1750729832947,-466.09024353,0.00019264,2]
[367283036,1750729832956,-534.38955287,0.00019264,2]
[367283038,1750729832965,-1617.97,0.00019264,2]
[367283040,1750729832974,-466.70359804,0.00019264,2]
[367283042,1750729832983,-2862.19,0.00019264,2]
[367283044,1750729832993,-465.35014763,0.00019264,2]
[367283046,1750729833002,-466.70268803,0.00019264,2]
[367283048,1750729833011,-574.50263698,0.00019264,2]
[367283050,1750729833020,-460.0,0.00019264,2]
[367283052,1750729833029,-468.91553032,0.00019264,2]
[367283055,1750729833039,-202.08102038,0.00019264,2]
[367283057,1750729833049,-469.64667347,0.00019264,2]
[367283058,1750729833060,-954.45,0.00019264,2]
[367283059,1750729833069,-239.35245922,0.00019264,2]
[367283060,1750729833079,-505.66,0.00019264,2]
[367283061,1750729833089,-498.19919261,0.00019264,2]
[367283063,1750729833098,-464.81645396,0.00019264,2]
[367283064,1750729833108,-465.80418114,0.00019264,2]
[367283065,1750729833117,-463.28231248,0.00019264,2]
[367283066,1750729833127,-487.31652225,0.00019264,2]
[367283067,1750729833137,-1608.11,0.00019264,2]
[367283069,1750729833147,-460.0,0.00019264,2]
[367283071,1750729833157,-943.67,0.00019264,2]
[367283072,1750729833168,-2312.41,0.00019264,2]
[367283073,1750729833178,-465.54350032,0.00019264,2]
[367283074,1750729833188,-544.39,0.00019264,2]
[367283075,1750729833198,-728.72,0.00019264,2]
[367283076,1750729833207,-464.89170845,0.00019264,2]
[367283077,1750729833217,-564.35062014,0.00019264,2]
[367283078,1750729833227,-482.61,0.00019264,2]
[367283079,1750729833236,-436.58210926,0.00019264,2]
[367283080,1750729833245,-460.0,0.00019264,2]
[367283081,1750729833255,-463.73842754,0.00019264,2]
[367283082,1750729833264,-460.0,0.00019264,2]
[367283083,1750729833275,-460.0,0.00019264,2]
[367283084,1750729833285,-460.0,0.00019264,2]
[367283085,1750729833295,-465.02236234,0.00019264,2]
[367283086,1750729833305,-590.14,0.00019264,2]
[367283087,1750729833314,-1807.38860531,0.00019264,2]
[367283088,1750729833339,-74.06139469,0.00019264,2]
[367283089,1750729833348,-523.47190877,0.00019264,2]
[367283090,1750729833357,-1973.13,0.00019265,3]
[367283091,1750729833367,-986.57,0.00019265,3]
[367283092,1750729833377,-493.28,0.00019265,3]
[367283093,1750729833386,-246.64,0.00019265,3]
[367283094,1750729833395,-739.97,0.00019265,3]
[367283095,1750729833405,-678.25,0.00019265,3]
[367283096,1750729833414,-339.12,0.00019265,3]
[367283097,1750729833423,-169.56,0.00019265,3]
[367283098,1750729833433,-169.56,0.00019265,3]
[367283099,1750729833442,-599.87,0.00019266,3]
[367283100,1750729833452,-3700.16272267,0.00019266,3]
[367283134,1750729838569,-460.0,0.00019264,2]
[367283136,1750729838579,-246.10727733,0.00019266,3]
[367283138,1750729838588,-1991.84,0.0001927,2]
[367283140,1750729838597,-460.0,0.0001927,2]
[367283142,1750729838606,-246.61216753,0.00019272,2]
[367283144,1750729838616,-460.0,0.00019272,2]
[367283146,1750729838625,-161.43896537,0.00019272,2]
[367283148,1750729838634,-465.46602649,0.00019272,2]
[367283150,1750729838647,-460.0,0.00019272,2]
[367283152,1750729838657,-173.73169135,0.00019272,2]
[367283157,1750729838673,-286.26830865,0.00019272,2]
[367283160,1750729838683,-584.66675755,0.00019272,2]
[367283162,1750729838692,-270.09307999,0.00019272,2]
[367283164,1750729838701,-465.22662363,0.00019272,2]
[367283166,1750729838711,-464.28513472,0.00019272,2]
[367283168,1750729838720,-460.0,0.00019272,2]
[367283170,1750729838731,-460.0,0.00019272,2]
[367283172,1750729838740,-460.0,0.00019272,2]
[367283174,1750729838750,-468.58862482,0.00019272,2]
[367283176,1750729838759,-465.47858194,0.00019272,2]
[367283178,1750729838768,-461.18452503,0.00019272,2]
[367283180,1750729838777,-463.04969651,0.00019272,2]
[367283182,1750729838786,-460.0,0.00019272,2]
[367283184,1750729838795,-788.45,0.00019272,2]
[367283186,1750729838805,-460.0,0.00019272,2]
[367283188,1750729838814,-561.81,0.00019272,2]
[367283190,1750729838824,-460.0,0.00019272,2]
[367283192,1750729838833,-462.82310601,0.00019272,2]
[367283194,1750729838842,-466.37500252,0.00019272,2]
[367283196,1750729838852,-460.0,0.00019272,2]
[367283198,1750729838862,-460.0,0.00019272,2]
[367283200,1750729838871,-460.0,0.00019272,2]
[367283203,1750729838881,-506.97812899,0.00019272,2]
[367283205,1750729838891,-460.0,0.00019272,2]
[367283206,1750729838899,-489.94,0.00019272,2]
[367283208,1750729838909,-465.09678028,0.00019272,2]
[367283211,1750729838919,-460.0,0.00019272,2]
[367283212,1750729838928,-460.67,0.00019272,2]
[367283214,1750729838937,-460.0,0.00019272,2]
[367283216,1750729838946,-855.58,0.00019272,2]
[367283218,1750729838956,-460.0,0.00019272,2]
[367283220,1750729838965,-550.84,0.00019272,2]
[367283222,1750729838973,-460.0,0.00019272,2]
[367283224,1750729838983,-562.6,0.00019272,2]
[367283226,1750729838992,-462.91833736,0.00019272,2]
[367283228,1750729839001,-460.0,0.00019272,2]
[367283231,1750729839011,-462.90334112,0.00019272,2]
[367283232,1750729839020,-559.62,0.00019272,2]
[367283235,1750729839030,-465.8059087,0.00019272,2]
[367283237,1750729839039,-460.0,0.00019272,2]
[367283239,1750729839049,-464.86161934,0.00019272,2]
[367283241,1750729839059,-710.17,0.00019272,2]
[367283243,1750729839068,-460.0,0.00019272,2]
[367283245,1750729839077,-261.58094292,0.00019272,2]
[367283247,1750729839086,-476.44649756,0.00019272,2]
[367283249,1750729839095,-460.0,0.00019272,2]
[367283251,1750729839106,-460.0,0.00019272,2]
[367283269,1750729839116,-460.0,0.00019272,2]
[367283271,1750729839275,-951.82,0.00019272,2]
[367283273,1750729839285,-460.0,0.00019272,2]
[367283274,1750729839294,-460.0,0.00019272,2]
[367283275,1750729839304,-460.0,0.00019272,2]
[367283276,1750729839313,-460.0,0.00019272,2]
[367283277,1750729839323,-460.87804234,0.00019272,2]
[367283278,1750729839332,-460.0,0.00019272,2]
[367283279,1750729839341,-485.15576816,0.00019272,2]
[367283280,1750729839350,-460.0,0.00019272,2]
[367283281,1750729839359,-532.8718719,0.00019273,2]
[367283282,1750729839369,-462.58675631,0.00019273,2]
[367283283,1750729839378,-461.81638807,0.00019273,2]
[367283284,1750729839387,-463.64563276,0.00019273,2]
[367283285,1750729839397,-464.72019184,0.00019273,2]
[367283286,1750729839406,-464.81678508,0.00019273,2]
[367283287,1750729839416,-466.73339403,0.00019273,2]
[367283288,1750729839426,-460.0,0.00019273,2]
[367283289,1750729839435,-298.56953595,0.00019273,2]
[367283291,1750729839445,-500.0,0.00019273,2]
[367283293,1750729839454,-500.0,0.00019273,2]
[367283295,1750729839463,-500.0,0.00019273,2]
[367283297,1750729839472,-500.0,0.00019273,2]
[367283299,1750729839484,-500.0,0.00019273,2]
[367283301,1750729839493,-500.0,0.00019273,2]
[367283303,1750729839502,-500.0,0.00019273,2]
[367283305,1750729839511,-500.0,0.00019273,2]
[367283307,1750729839521,-500.0,0.00019273,2]
[367283309,1750729839530,-500.0,0.00019273,2]
[367283311,1750729839541,-500.0,0.00019273,2]
[367283313,1750729839550,-500.0,0.00019273,2]
[367283315,1750729839560,-500.0,0.00019273,2]
[367283317,1750729839571,-500.0,0.00019273,2]
[367283319,1750729839580,-500.0,0.00019273,2]
[367283321,1750729839590,-488.55752258,0.00019273,2]
[367283323,1750729839599,-500.0,0.00019273,2]
[367283325,1750729839609,-361.55778149,0.00019273,2]
[367283327,1750729839618,-500.0,0.00019273,2]
[367283329,1750729839627,-500.0,0.00019273,2]
[367283331,1750729839637,-500.0,0.00019273,2]
[367283333,1750729839646,-500.0,0.00019273,2]
[367283335,1750729839655,-500.0,0.00019273,2]
[367283337,1750729839665,-500.0,0.00019273,2]
[367283339,1750729839674,-500.0,0.00019273,2]
[367283341,1750729839683,-300.0,0.00019273,2]
[367283343,1750729839693,-460.0,0.00019273,2]
[367283345,1750729839702,-5006.2,0.00019273,2]
[367283347,1750729839711,-566.32,0.00019273,2]
[367283349,1750729839721,-590.65,0.00019273,2]
[367283351,1750729839731,-735.4,0.00019273,2]
[367283353,1750729839740,-460.0,0.00019273,2]
[367283355,1750729839750,-788.46,0.00019273,2]
[367283357,1750729839759,-2158.78,0.00019273,2]
[367283359,1750729839769,-634.94,0.00019273,2]
[367283361,1750729839778,-471.43853134,0.00019273,2]
[367283363,1750729839788,-467.76442042,0.00019274,2]
[367283365,1750729839798,-461.79837303,0.00019274,2]
[367283367,1750729839807,-465.80272071,0.00019274,2]
[367283369,1750729839817,-466.89549641,0.00019274,2]
[367283372,1750729839827,-467.3444611,0.00019274,2]
[367283374,1750729839836,-466.95855286,0.00019274,2]
[367283377,1750729839846,-470.47620439,0.00019274,2]
[367283379,1750729839856,-468.50047971,0.00019274,2]
[367283381,1750729839865,-461.06646507,0.00019274,2]
[367283383,1750729839875,-462.09919604,0.00019274,2]
[367283385,1750729839884,-464.93385656,0.00019274,2]
[367283387,1750729839894,-460.0,0.00019274,2]
[367283390,1750729839904,-461.46956662,0.00019274,2]
[367283392,1750729839914,-460.0,0.00019274,2]
[367283394,1750729839924,-460.0,0.00019274,2]
[367283396,1750729839934,-627.15,0.00019274,2]
[367283398,1750729839943,-471.49209284,0.00019274,2]
[367283401,1750729839953,-460.0,0.00019274,2]
[367283403,1750729839963,-460.0,0.00019274,2]
[367283406,1750729839984,-2277.37,0.00019274,2]
[367283408,1750729839995,-1169.76,0.00019274,2]
[367283410,1750729840005,-487.724936,0.00019274,2]
[367283412,1750729840016,-522.144739,0.00019274,2]
[367283414,1750729840027,-460.0,0.00019274,2]
[367283416,1750729840038,-2020.88,0.00019274,2]
[367283418,1750729840049,-970.52,0.00019274,2]
[367283421,1750729840059,-588.37019898,0.00019274,2]
[367283423,1750729840069,-468.8065227,0.00019274,2]
[367283425,1750729840079,-2957.17,0.00019274,2]
[367283427,1750729840090,-460.0,0.00019275,2]